Workbook

Sheet план
A1: № заявки | D1: Медиа План | W1: НАЛ
A2: Дата заявки: | B2: ВЫБОР | K2: =B7 -> 00:00:00 | L2: 2015-04-22 | W2: Б/НАЛ
A3: Исполнитель: | B3: ООО "Стильное Радио" | H3: Название ролика: | W3: БАРТЕР
A4: Заказчик: | H4: Хронометраж: | W4: БЕСПЛАТНО
A5: Торговая марка (Бренд): | H5: Сумма заявки: | J5: =SUMIF(A10:A52,1,N10:N52) -> 0 | W5: Н-БАРТЕР
A6: Клиент-менеджер: | H6: Скидка: | J6: =SUMIF(O10:O52,"<>0",P10:P52) -> 0
A7: Дата начала проката: | D7: =B8-B7+1 -> 1 | H7: ИТОГО: | J7: =J5-J6 -> 0
A8: Дата оконч. проката:
A9: выбор (для выбора центра поставить "1" ) | C9: Коэффициент | D9: Количесто часов трансляции в день | E9: Количество дней | F9: Коэф время | G9: Часы Коэф | H9: Количество выходов в час | I9: Выход Коэф | J9: Количество трансляций роликов в день | K9: Всего выходов | L9: Стоимость за 1 выход | M9: Стоимость за 1 день | N9: Итого стоимость | O9: скидка (%) | P9: скидка (руб.) | Q9: ИТОГО | R9: ФОРМА РАСЧЕТА | S9: примечание
B10: г. Владивосток, ТК "Дальприбор" (ул. Бородинская, 46/50; вещание на УЛИЦЕ) | C10: =IF(ISNA(VLOOKUP(B10,база!$A$4:$B$53,2,FALSE)),"0",VLOOKUP(B10,база!$A$4:$B$53,2,FALSE)) -> 12 | D10: 10 | E10: 30 | F10: =IF(ISNA(VLOOKUP(E10,база!$G$4:$G$58,2,FALSE)),"0",VLOOKUP(план!E18,база!$G$4:$G$58,2,FALSE)) ->  | G10: =IF(ISNA(VLOOKUP(D10,база!$C$4:$D$25,2,FALSE)),"0",VLOOKUP(D10,база!$C$4:$D$25,2,FALSE)) -> 0 | H10: 3 | I10: =IF(ISNA(VLOOKUP(H10,база!$E$4:$F$6,2,FALSE)),"0",VLOOKUP(H10,база!$E$4:$F$6,2,FALSE)) -> 0 | J10: =D10*H10 -> 30 | K10: =E10*J10 -> 900 | L10: 12 | M10: =J10*L10 -> 360 | N10: =K10*L10 -> 10800 | P10: =N10*O10/100 -> 0 | Q10: =N10-P10 -> 10800
B11: г. Владивосток, ТЦ "Виктория" (ул. Бородинская, 46/50; внутр.) | C11: =IF(ISNA(VLOOKUP(B11,база!$A$4:$B$53,2,FALSE)),"0",VLOOKUP(B11,база!$A$4:$B$53,2,FALSE)) -> 10 | D11: 8 | E11: 30 | F11: =IF(ISNA(VLOOKUP(E11,база!$G$4:$G$58,2,FALSE)),"0",VLOOKUP(план!#REF!,база!$G$4:$G$58,2,FALSE)) ->  | G11: =IF(ISNA(VLOOKUP(D11,база!$C$4:$D$25,2,FALSE)),"0",VLOOKUP(D11,база!$C$4:$D$25,2,FALSE)) -> 0 | H11: 3 | I11: =IF(ISNA(VLOOKUP(H11,база!$E$4:$F$6,2,FALSE)),"0",VLOOKUP(H11,база!$E$4:$F$6,2,FALSE)) -> 0 | J11: 24 | K11: 720 | L11: 10 | M11: 240 | N11: 7200 | P11: 0 | Q11: 7200
B12: г. Владивосток, ТЦ "Альянс" (ул. Бородинская 46/50; внутр.) | C12: =IF(ISNA(VLOOKUP(B12,база!$A$4:$B$53,2,FALSE)),"0",VLOOKUP(B12,база!$A$4:$B$53,2,FALSE)) -> 5 | D12: 8 | E12: 30 | F12: =IF(ISNA(VLOOKUP(E12,база!$G$4:$G$58,2,FALSE)),"0",VLOOKUP(план!#REF!,база!$G$4:$G$58,2,FALSE)) ->  | G12: =IF(ISNA(VLOOKUP(D12,база!$C$4:$D$25,2,FALSE)),"0",VLOOKUP(D12,база!$C$4:$D$25,2,FALSE)) -> 0 | H12: 3 | I12: =IF(ISNA(VLOOKUP(H12,база!$E$4:$F$6,2,FALSE)),"0",VLOOKUP(H12,база!$E$4:$F$6,2,FALSE)) -> 0 | J12: 24 | K12: 720 | L12: 6 | M12: 144 | N12: 4320 | P12: 0 | Q12: 4320
B13: г. Владивосток, ТЦ "Универсам" (ул. Русская, 44; внутр. и внеш.) | C13: =IF(ISNA(VLOOKUP(B13,база!$A$4:$B$53,2,FALSE)),"0",VLOOKUP(B13,база!$A$4:$B$53,2,FALSE)) -> 7.1 | D13: 9 | E13: 30 | F13: =IF(ISNA(VLOOKUP(E13,база!$G$4:$G$58,2,FALSE)),"0",VLOOKUP(план!#REF!,база!$G$4:$G$58,2,FALSE)) ->  | G13: =IF(ISNA(VLOOKUP(D13,база!$C$4:$D$25,2,FALSE)),"0",VLOOKUP(D13,база!$C$4:$D$25,2,FALSE)) -> 0 | H13: 3 | I13: =IF(ISNA(VLOOKUP(H13,база!$E$4:$F$6,2,FALSE)),"0",VLOOKUP(H13,база!$E$4:$F$6,2,FALSE)) -> 0 | J13: 27 | K13: 810 | L13: 8 | M13: 216 | N13: 6480 | P13: 0 | Q13: 6480
B14: г. Владивосток, ПТК Луговая (ул. Луговая, 18) | D14: 9 | E14: 30 | F14: =IF(ISNA(VLOOKUP(E14,база!$G$4:$G$58,2,FALSE)),"0",VLOOKUP(план!#REF!,база!$G$4:$G$58,2,FALSE)) ->  | G14: =IF(ISNA(VLOOKUP(D14,база!$C$4:$D$25,2,FALSE)),"0",VLOOKUP(D14,база!$C$4:$D$25,2,FALSE)) -> 0 | H14: 3 | I14: =IF(ISNA(VLOOKUP(H14,база!$E$4:$F$6,2,FALSE)),"0",VLOOKUP(H14,база!$E$4:$F$6,2,FALSE)) -> 0 | J14: =D14*H14 -> 27 | K14: =E14*J14 -> 810 | L14: 10 | M14: =J14*L14 -> 270 | N14: =K14*L14 -> 8100 | P14: =N14*O14/100 -> 0 | Q14: =N14-P14 -> 8100
B15: г. Владивосток, ТЦ "Первореченский"- (Острякова,13) | C15: =IF(ISNA(VLOOKUP(B15,[2]база!$A$4:$B$71,2,FALSE)),"0",VLOOKUP(B15,[2]база!$A$4:$B$71,2,FALSE)) -> 0 | D15: 9 | E15: 30 | F15: =IF(ISNA(VLOOKUP(E15,база!$G$4:$G$58,2,FALSE)),"0",VLOOKUP(план!#REF!,база!$G$4:$G$58,2,FALSE)) ->  | G15: =IF(ISNA(VLOOKUP(D15,база!$C$4:$D$25,2,FALSE)),"0",VLOOKUP(D15,база!$C$4:$D$25,2,FALSE)) -> 0 | H15: 3 | I15: =IF(ISNA(VLOOKUP(H15,база!$E$4:$F$6,2,FALSE)),"0",VLOOKUP(H15,база!$E$4:$F$6,2,FALSE)) -> 0 | J15: 27 | K15: 810 | L15: 10 | M15: 270 | N15: 8100 | P15: 0 | Q15: 8100
B16: г. Владивосток, Дизайн студия "Заря"(пр-т 100 лет Вл-ку 155/2; внутр и внешн) | C16: =IF(ISNA(VLOOKUP(B16,база!$A$4:$B$53,2,FALSE)),"0",VLOOKUP(B16,база!$A$4:$B$53,2,FALSE)) -> 3.3 | D16: 10 | E16: 30 | F16: =IF(ISNA(VLOOKUP(E16,база!$G$4:$G$58,2,FALSE)),"0",VLOOKUP(план!#REF!,база!$G$4:$G$58,2,FALSE)) ->  | G16: =IF(ISNA(VLOOKUP(D16,база!$C$4:$D$25,2,FALSE)),"0",VLOOKUP(D16,база!$C$4:$D$25,2,FALSE)) -> 0 | H16: 3 | I16: =IF(ISNA(VLOOKUP(H16,база!$E$4:$F$6,2,FALSE)),"0",VLOOKUP(H16,база!$E$4:$F$6,2,FALSE)) -> 0 | J16: 30 | K16: 900 | L16: 6 | M16: 180 | N16: 5400 | P16: 0 | Q16: 5400
B17: г. Владивосток ТЦ "Гранд" (ул. Русская,46 внутр.) | D17: 9 | E17: 30 | H17: 3 | J17: 27 | K17: 810 | L17: 8 | M17: 216 | N17: 6480 | P17: 0 | Q17: 6480
B18: г. Владивосток, ТЦ "Искра"- переход (п-т 100 Владивостоку, внутр) | C18: =IF(ISNA(VLOOKUP(B18,база!$A$4:$B$53,2,FALSE)),"0",VLOOKUP(B18,база!$A$4:$B$53,2,FALSE)) -> 3.3 | D18: 10 | E18: 30 | F18: =IF(ISNA(VLOOKUP(E18,база!$G$4:$G$58,2,FALSE)),"0",VLOOKUP(план!E18,база!$G$4:$G$58,2,FALSE)) ->  | G18: =IF(ISNA(VLOOKUP(D18,база!$C$4:$D$25,2,FALSE)),"0",VLOOKUP(D18,база!$C$4:$D$25,2,FALSE)) -> 0 | H18: 3 | I18: =IF(ISNA(VLOOKUP(H18,база!$E$4:$F$6,2,FALSE)),"0",VLOOKUP(H18,база!$E$4:$F$6,2,FALSE)) -> 0 | J18: 30 | K18: =E18*J18 -> 900 | L18: 6 | M18: 180 | N18: 5400 | P18: 0 | Q18: 5400
B19: г. Владивосток , ул Светланская(район музей Арсеньева) | D19: 10 | E19: 30 | H19: 3 | J19: 30 | K19: =E19*J19 -> 900 | L19: 15 | M19: 450 | N19: =K19*L19 -> 13500 | P19: =N19*O19/100 -> 0 | Q19: =N19-P19 -> 13500
B20: г. Владивосток , ул Семеновская площадь(на ТЦ "Клевер Хаус") | D20: 10 | E20: 30 | H20: 3 | J20: 30 | K20: 900 | L20: 25 | M20: 750 | N20: 22500 | P20: 0 | Q20: 22500
B21: г. Владивосток, Набережная спортивной гавани, тер. от аллеи до СК "Олимпиец" | D21: 10 | E21: 30 | H21: 3 | J21: 30 | K21: 900 | L21: 15 | M21: 450 | N21: 13500 | P21: 0 | Q21: 13500
B22: г. Владивосток, ТЦ "Первомай"(р-н Чуркин, перед Зеленым островом) | D22: 10 | E22: 30 | H22: 3 | J22: 30 | K22: 900 | L22: 15 | M22: 450 | N22: 13500 | P22: 0 | Q22: 13500
B23: г. Владивосток, ТЦ "Снеговая падь"(ул. Анны Щетининой,21) | D23: 10 | E23: 30 | H23: 3 | J23: 30 | K23: 900 | L23: 6 | M23: 180 | N23: 5400 | P23: 0 | Q23: 5400
B24: г. Вадивосток, ТК "Спортивная" (ул. Фадеева, 1а) | D24: 9 | E24: 30 | H24: 3 | J24: =D24*H24 -> 27 | K24: =E24*J24 -> 810 | L24: 10 | M24: =J24*L24 -> 270 | N24: =K24*L24 -> 8100 | P24: =N24*O24/100 -> 0 | Q24: =N24-P24 -> 8100
B25: г. Владивосток, ТЦ "Ярмарка на Крыгина" (ул. Крыгина, 23) | D25: 9 | E25: 30 | H25: 3 | J25: 27 | K25: 810 | L25: 6 | M25: 162 | N25: 4860 | P25: 0 | Q25: 4860
B26: г. Владивосток, Авторынок "Зеленый Угол" (ул. Нейбута) | D26: 6 | E26: 30 | H26: 3 | J26: =H26*D26 -> 18 | K26: =J26*E26 -> 540 | L26: 22 | M26: =L26*J26 -> 396 | N26: =L26*K26 -> 11880 | P26: =N26*O26/100 -> 0 | Q26: =N26-P26 -> 11880
B27: г. Владивосток, ТЦ «КИТАЙ ГОРОД» (Выселковая) | D27: 10 | E27: 30 | H27: 3 | J27: 30 | K27: 900 | L27: 15 | M27: 450 | N27: 13500 | P27: =N27*O27/100 -> 0 | Q27: =N27-P27 -> 13500
B28: г. Артем. ТЦ "Авиатор" (ул. Фрунзе, 32а. Внутр. Внеш.) | C28: =IF(ISNA(VLOOKUP(B28,база!$A$4:$B$53,2,FALSE)),"0",VLOOKUP(B28,база!$A$4:$B$53,2,FALSE)) -> 0 | D28: 10 | E28: 30 | F28: =IF(ISNA(VLOOKUP(E28,база!$G$4:$G$58,2,FALSE)),"0",VLOOKUP(план!#REF!,база!$G$4:$G$58,2,FALSE)) ->  | G28: =IF(ISNA(VLOOKUP(D28,база!$C$4:$D$25,2,FALSE)),"0",VLOOKUP(D28,база!$C$4:$D$25,2,FALSE)) -> 0 | H28: 3 | I28: =IF(ISNA(VLOOKUP(H28,база!$E$4:$F$6,2,FALSE)),"0",VLOOKUP(H28,база!$E$4:$F$6,2,FALSE)) -> 0 | J28: =D28*H28 -> 30 | K28: 900 | L28: 8 | M28: 240 | N28: =K28*L28 -> 7200 | P28: =N28*O28/100 -> 0 | Q28: =N28-P28 -> 7200
B29: г. Артем.ТЦ "Городской" (ул. Кирова 9/1. внутр., внеш.) | C29: =IF(ISNA(VLOOKUP(B29,база!$A$4:$B$53,2,FALSE)),"0",VLOOKUP(B29,база!$A$4:$B$53,2,FALSE)) -> 0 | D29: 8 | E29: 30 | F29: =IF(ISNA(VLOOKUP(E29,база!$G$4:$G$58,2,FALSE)),"0",VLOOKUP(план!#REF!,база!$G$4:$G$58,2,FALSE)) ->  | G29: =IF(ISNA(VLOOKUP(D29,база!$C$4:$D$25,2,FALSE)),"0",VLOOKUP(D29,база!$C$4:$D$25,2,FALSE)) -> 0 | H29: 3 | I29: =IF(ISNA(VLOOKUP(H29,база!$E$4:$F$6,2,FALSE)),"0",VLOOKUP(H29,база!$E$4:$F$6,2,FALSE)) -> 0 | J29: 24 | K29: 720 | L29: 10 | M29: 240 | N29: 7200 | P29: 0 | Q29: 7200
B30: г. Артем. Муницмпальный РЫНОК (ул. Пионерская,1. внеш.) | D30: 7 | E30: 30 | H30: 3 | J30: 21 | K30: 630 | L30: 4.76 | M30: =J30*L30 -> 99.96 | N30: 2998.8 | P30: =N30*O30/100 -> 0 | Q30: =N30-P30 -> 2998.8
B31: г. Артем.п. Угловое ТЦ "Регион" (ул. 1-я Рабочая, 16. внутр., внеш.) | C31: =IF(ISNA(VLOOKUP(B31,[3]база!$A$4:$B$53,2,FALSE)),"0",VLOOKUP(B31,[3]база!$A$4:$B$53,2,FALSE)) -> 0 | D31: 8 | E31: 30 | F31: =IF(ISNA(VLOOKUP(E31,[3]база!$G$4:$G$58,2,FALSE)),"0",VLOOKUP([3]план!#REF!,[3]база!$G$4:$G$58,2,FALSE)) ->  | G31: =IF(ISNA(VLOOKUP(D31,[3]база!$C$4:$D$25,2,FALSE)),"0",VLOOKUP(D31,[3]база!$C$4:$D$25,2,FALSE)) -> 0 | H31: 3 | I31: =IF(ISNA(VLOOKUP(H31,[3]база!$E$4:$F$6,2,FALSE)),"0",VLOOKUP(H31,[3]база!$E$4:$F$6,2,FALSE)) -> 0 | J31: =D31*H31 -> 24 | K31: =E31*J31 -> 720 | L31: 10 | M31: =J31*L31 -> 240 | N31: =K31*L31 -> 7200 | P31: =N31*O31/100 -> 0 | Q31: =N31-P31 -> 7200
B32: г. Артем.Супермаркет "№ 90" (ул. Фрунзе, 48) | C32: =IF(ISNA(VLOOKUP(B32,база!$A$4:$B$53,2,FALSE)),"0",VLOOKUP(B32,база!$A$4:$B$53,2,FALSE)) -> 0 | D32: 10 | E32: 30 | F32: =IF(ISNA(VLOOKUP(E32,база!$G$4:$G$58,2,FALSE)),"0",VLOOKUP(план!E12,база!$G$4:$G$58,2,FALSE)) ->  | G32: =IF(ISNA(VLOOKUP(D32,база!$C$4:$D$25,2,FALSE)),"0",VLOOKUP(D32,база!$C$4:$D$25,2,FALSE)) -> 0 | H32: 6 | I32: =IF(ISNA(VLOOKUP(H32,база!$E$4:$F$6,2,FALSE)),"0",VLOOKUP(H32,база!$E$4:$F$6,2,FALSE)) -> 0 | J32: 60 | K32: 1800 | L32: 1.34 | M32: 80.4 | N32: 2412 | P32: 0 | Q32: 2412
B33: г. Артем.Супермаркет "Парус" (ул. Кирова, 19) | C33: =IF(ISNA(VLOOKUP(B33,база!$A$4:$B$53,2,FALSE)),"0",VLOOKUP(B33,база!$A$4:$B$53,2,FALSE)) -> 0 | D33: 10 | E33: 30 | F33: =IF(ISNA(VLOOKUP(E33,база!$G$4:$G$58,2,FALSE)),"0",VLOOKUP(план!E13,база!$G$4:$G$58,2,FALSE)) ->  | G33: =IF(ISNA(VLOOKUP(D33,база!$C$4:$D$25,2,FALSE)),"0",VLOOKUP(D33,база!$C$4:$D$25,2,FALSE)) -> 0 | H33: 6 | I33: =IF(ISNA(VLOOKUP(H33,база!$E$4:$F$6,2,FALSE)),"0",VLOOKUP(H33,база!$E$4:$F$6,2,FALSE)) -> 0 | J33: 60 | K33: 1800 | L33: 1.34 | M33: 80.4 | N33: 2412 | P33: 0 | Q33: 2412
B34: г. Артем.Супермаркет "Юлия" (ул. Кирова, 1/1) | C34: =IF(ISNA(VLOOKUP(B34,база!$A$4:$B$53,2,FALSE)),"0",VLOOKUP(B34,база!$A$4:$B$53,2,FALSE)) -> 0 | D34: 10 | E34: 30 | F34: =IF(ISNA(VLOOKUP(E34,база!$G$4:$G$58,2,FALSE)),"0",VLOOKUP(план!#REF!,база!$G$4:$G$58,2,FALSE)) ->  | G34: =IF(ISNA(VLOOKUP(D34,база!$C$4:$D$25,2,FALSE)),"0",VLOOKUP(D34,база!$C$4:$D$25,2,FALSE)) -> 0 | H34: 6 | I34: =IF(ISNA(VLOOKUP(H34,база!$E$4:$F$6,2,FALSE)),"0",VLOOKUP(H34,база!$E$4:$F$6,2,FALSE)) -> 0 | J34: 60 | K34: 1800 | L34: 1.34 | M34: 80.4 | N34: 2412 | P34: 0 | Q34: 2412
B35: г. Артем.Супрмаркет "Алмаз" (ул. Кирова, 72) | C35: =IF(ISNA(VLOOKUP(B35,база!$A$4:$B$53,2,FALSE)),"0",VLOOKUP(B35,база!$A$4:$B$53,2,FALSE)) -> 0 | D35: 10 | E35: 30 | F35: =IF(ISNA(VLOOKUP(E35,база!$G$4:$G$58,2,FALSE)),"0",VLOOKUP(план!E10,база!$G$4:$G$58,2,FALSE)) ->  | G35: =IF(ISNA(VLOOKUP(D35,база!$C$4:$D$25,2,FALSE)),"0",VLOOKUP(D35,база!$C$4:$D$25,2,FALSE)) -> 0 | H35: 6 | I35: =IF(ISNA(VLOOKUP(H35,база!$E$4:$F$6,2,FALSE)),"0",VLOOKUP(H35,база!$E$4:$F$6,2,FALSE)) -> 0 | J35: 60 | K35: 1800 | L35: 1.34 | M35: 80.4 | N35: 2412 | P35: 0 | Q35: 2412
B36: г. Находка, ТЦ "Купеческий" (г. Находка ул. Сидоренко, 1. внутр., внеш.) | C36: =IF(ISNA(VLOOKUP(B36,база!$A$4:$B$53,2,FALSE)),"0",VLOOKUP(B36,база!$A$4:$B$53,2,FALSE)) -> 0 | D36: 10 | E36: 30 | F36: =IF(ISNA(VLOOKUP(E36,база!$G$4:$G$58,2,FALSE)),"0",VLOOKUP(план!#REF!,база!$G$4:$G$58,2,FALSE)) ->  | G36: =IF(ISNA(VLOOKUP(D36,база!$C$4:$D$25,2,FALSE)),"0",VLOOKUP(D36,база!$C$4:$D$25,2,FALSE)) -> 0 | H36: 3 | I36: =IF(ISNA(VLOOKUP(H36,база!$E$4:$F$6,2,FALSE)),"0",VLOOKUP(H36,база!$E$4:$F$6,2,FALSE)) -> 0 | J36: 30 | K36: 900 | L36: 10 | M36: 300 | N36: 9000 | P36: 0 | Q36: 9000
B37: г. Находка "КАНТ и Ко" (ул. Находкинский проспект, 5) | D37: 10 | E37: 30 | H37: 3 | J37: 30 | K37: 900 | L37: 7 | M37: 210 | N37: 6300 | P37: 0 | Q37: 6300
B38: г. Находка ТЦ "Апельсин" (ул. Школьная, 1б) | D38: 10 | E38: 30 | H38: 3 | J38: 30 | K38: 900 | L38: 8 | M38: 240 | N38: 7200 | P38: 0 | Q38: 7200
B39: г. Большой Камень.ТЦ "Айсберг" (ул. Аллея труда, 35 а) | D39: 10 | E39: 30 | F39: =IF(ISNA(VLOOKUP(E39,[4]база!$G$4:$G$58,2,FALSE)),"0",VLOOKUP([4]план!#REF!,[4]база!$G$4:$G$58,2,FALSE)) ->  | G39: =IF(ISNA(VLOOKUP(D39,[4]база!$C$4:$D$25,2,FALSE)),"0",VLOOKUP(D39,[4]база!$C$4:$D$25,2,FALSE)) -> 0 | H39: 3 | I39: =IF(ISNA(VLOOKUP(H39,[4]база!$E$4:$F$6,2,FALSE)),"0",VLOOKUP(H39,[4]база!$E$4:$F$6,2,FALSE)) -> 0 | J39: =D39*H39 -> 30 | K39: =E39*J39 -> 900 | L39: 6 | M39: =J39*L39 -> 180 | N39: =K39*L39 -> 5400 | P39: 0 | Q39: =N39-P39 -> 5400
B40: г. Уссурийск. ТЦ Новый ГУМ (ул. Чичерина, 105) | D40: 10 | E40: 30 | H40: 3 | J40: 30 | K40: 900 | L40: 8 | M40: 240 | N40: 7200 | P40: 0 | Q40: 7200
B41: г. Уссурийск, ТЦ Богатырь (ул. Чичерина,91-а) | C41: =IF(ISNA(VLOOKUP(B41,база!$A$4:$B$53,2,FALSE)),"0",VLOOKUP(B41,база!$A$4:$B$53,2,FALSE)) -> 3 | D41: 10 | E41: 30 | F41: =IF(ISNA(VLOOKUP(E41,база!$G$4:$G$58,2,FALSE)),"0",VLOOKUP(план!#REF!,база!$G$4:$G$58,2,FALSE)) ->  | G41: =IF(ISNA(VLOOKUP(D41,база!$C$4:$D$25,2,FALSE)),"0",VLOOKUP(D41,база!$C$4:$D$25,2,FALSE)) -> 0 | H41: 5 | I41: =IF(ISNA(VLOOKUP(H41,база!$E$4:$F$6,2,FALSE)),"0",VLOOKUP(H41,база!$E$4:$F$6,2,FALSE)) -> 0 | J41: 50 | K41: 1500 | L41: 6.5 | M41: 325 | N41: 9750 | P41: 0 | Q41: 9750
B42: г. Уссурийск, Центральный рынок (ул. Чичерина) | C42: =IF(ISNA(VLOOKUP(B42,база!$A$4:$B$53,2,FALSE)),"0",VLOOKUP(B42,база!$A$4:$B$53,2,FALSE)) -> 3 | D42: 10 | E42: 30 | F42: =IF(ISNA(VLOOKUP(E42,база!$G$4:$G$58,2,FALSE)),"0",VLOOKUP(план!E19,база!$G$4:$G$58,2,FALSE)) ->  | G42: =IF(ISNA(VLOOKUP(D42,база!$C$4:$D$25,2,FALSE)),"0",VLOOKUP(D42,база!$C$4:$D$25,2,FALSE)) -> 0 | H42: 3 | I42: =IF(ISNA(VLOOKUP(H42,база!$E$4:$F$6,2,FALSE)),"0",VLOOKUP(H42,база!$E$4:$F$6,2,FALSE)) -> 0 | J42: 30 | K42: 900 | L42: 6.5 | M42: 195 | N42: 5850 | P42: 0 | Q42: 5850
B43: г. Уссурийск. ТЦ "Антарес" (ул. Некрасова, 86) | D43: 10 | E43: 30 | H43: 3 | J43: =H43*D43 -> 30 | K43: =J43*E43 -> 900 | L43: 8 | M43: =L43*J43 -> 240 | N43: =L43*K43 -> 7200 | P43: =N43*O43/100 -> 0 | Q43: =N43-P43 -> 7200
B44: г. Уссурийск. ТЦ Москва (ул. Суханова, 52) | D44: 10 | E44: 30 | H44: 2 | J44: =H44*D44 -> 20 | K44: =J44*E44 -> 600 | L44: 13 | M44: =L44*J44 -> 260 | N44: =L44*K44 -> 7800 | P44: =N44*O44/100 -> 0 | Q44: =N44-P44 -> 7800
B45: г. Хабаровск. ТЦ "Али Восток" (пр.60 лет Октября, 156. внутр.) | C45: =IF(ISNA(VLOOKUP(B45,база!$A$4:$B$53,2,FALSE)),"0",VLOOKUP(B45,база!$A$4:$B$53,2,FALSE)) -> 0 | D45: 8 | E45: 30 | F45: =IF(ISNA(VLOOKUP(E45,база!$G$4:$G$58,2,FALSE)),"0",VLOOKUP(план!E18,база!$G$4:$G$58,2,FALSE)) ->  | G45: =IF(ISNA(VLOOKUP(D45,база!$C$4:$D$25,2,FALSE)),"0",VLOOKUP(D45,база!$C$4:$D$25,2,FALSE)) -> 0 | H45: 3 | I45: =IF(ISNA(VLOOKUP(H45,база!$E$4:$F$6,2,FALSE)),"0",VLOOKUP(H45,база!$E$4:$F$6,2,FALSE)) -> 0 | J45: 24 | K45: 720 | L45: 5 | M45: 120 | N45: 3600 | P45: 0 | Q45: 3600
B46: г. Хабаровск. ТЦ "Смайл-Март" (ул. П. Морозова, 118. внутр) | C46: =IF(ISNA(VLOOKUP(B46,база!$A$4:$B$53,2,FALSE)),"0",VLOOKUP(B46,база!$A$4:$B$53,2,FALSE)) -> 0 | D46: 10 | E46: 30 | F46: =IF(ISNA(VLOOKUP(E46,база!$G$4:$G$58,2,FALSE)),"0",VLOOKUP(план!E27,база!$G$4:$G$58,2,FALSE)) ->  | G46: =IF(ISNA(VLOOKUP(D46,база!$C$4:$D$25,2,FALSE)),"0",VLOOKUP(D46,база!$C$4:$D$25,2,FALSE)) -> 0 | H46: 3 | I46: =IF(ISNA(VLOOKUP(H46,база!$E$4:$F$6,2,FALSE)),"0",VLOOKUP(H46,база!$E$4:$F$6,2,FALSE)) -> 0 | J46: 30 | K46: 900 | L46: 8 | M46: 240 | N46: 7200 | P46: 0 | Q46: 7200
B47: г. Хабаровск. ТЦ "ЭВР" (ул.Суворова,51.внутр.) | C47: =IF(ISNA(VLOOKUP(B47,база!$A$4:$B$53,2,FALSE)),"0",VLOOKUP(B47,база!$A$4:$B$53,2,FALSE)) -> 0 | D47: 10 | E47: 30 | F47: =IF(ISNA(VLOOKUP(E47,база!$G$4:$G$58,2,FALSE)),"0",VLOOKUP(план!E29,база!$G$4:$G$58,2,FALSE)) ->  | G47: =IF(ISNA(VLOOKUP(D47,база!$C$4:$D$25,2,FALSE)),"0",VLOOKUP(D47,база!$C$4:$D$25,2,FALSE)) -> 0 | H47: 3 | I47: =IF(ISNA(VLOOKUP(H47,база!$E$4:$F$6,2,FALSE)),"0",VLOOKUP(H47,база!$E$4:$F$6,2,FALSE)) -> 0 | J47: 30 | K47: 900 | L47: 7 | M47: 210 | N47: 6300 | P47: 0 | Q47: 6300
B48: г. Хабаровск. ТЦ "Южный парк" (ул. Суворова,25, внутр.,внеш.) | C48: =IF(ISNA(VLOOKUP(B48,база!$A$4:$B$53,2,FALSE)),"0",VLOOKUP(B48,база!$A$4:$B$53,2,FALSE)) -> 0 | D48: 11 | E48: 30 | F48: =IF(ISNA(VLOOKUP(E48,база!$G$4:$G$58,2,FALSE)),"0",VLOOKUP(план!E28,база!$G$4:$G$58,2,FALSE)) ->  | G48: =IF(ISNA(VLOOKUP(D48,база!$C$4:$D$25,2,FALSE)),"0",VLOOKUP(D48,база!$C$4:$D$25,2,FALSE)) -> 0 | H48: 3 | I48: =IF(ISNA(VLOOKUP(H48,база!$E$4:$F$6,2,FALSE)),"0",VLOOKUP(H48,база!$E$4:$F$6,2,FALSE)) -> 0 | J48: 33 | K48: 990 | L48: 10 | M48: 330 | N48: 9900 | P48: 0 | Q48: 9900
B49: г.Хабаровск. ТЦ "Универсам" (ул.Краснореченская, 44. внутр.) | D49: 10 | E49: 30 | F49: =IF(ISNA(VLOOKUP(E49,база!$G$4:$G$58,2,FALSE)),"0",VLOOKUP(план!E29,база!$G$4:$G$58,2,FALSE)) ->  | G49: =IF(ISNA(VLOOKUP(D49,база!$C$4:$D$25,2,FALSE)),"0",VLOOKUP(D49,база!$C$4:$D$25,2,FALSE)) -> 0 | H49: 3 | I49: =IF(ISNA(VLOOKUP(H49,база!$E$4:$F$6,2,FALSE)),"0",VLOOKUP(H49,база!$E$4:$F$6,2,FALSE)) -> 0 | J49: =D49*H49 -> 30 | K49: =E49*J49 -> 900 | L49: 6 | M49: =J49*L49 -> 180 | N49: =K49*L49 -> 5400 | P49: =N49*O49/100 -> 0 | Q49: =N49-P49 -> 5400
B50: г. Хабаровск. ТД "Домострой" (ул. Пр-т 60 лет Октября, 158/1. внеш.) | D50: 10 | E50: 30 | H50: 3 | J50: =D50*H50 -> 30 | K50: 900 | L50: 5 | M50: 150 | N50: 4500 | P50: 0 | Q50: 4500
B51: ИЗГОТОВЛЕНИЕ РОЛИКА | N51: 1500 | P51: 0 | Q51: 1500
B52: КРЕАТИВ | N52: 500 | P52: 0 | Q52: 500

Sheet база (hidden)
A1: наименование | B1: тариф | C1: Кол-во часов | D1: Часы коэф | E1: Сколько выходов | F1: Выход Коэф | G1: Количество дней
A2: =план!B10 -> г. Владивосток, ТК "Дальприбор" (ул. Бородинская, 46/50; вещание на УЛИЦЕ)
A3: наименование | B3: тариф | C3: Кол-во часов | D3: Часы коэф | E3: Сколько выходов | F3: Выход Коэф | G3: Количество дней
A4: г. Владивосток, Дизайн студия "Заря"(пр-т 100 лет Вл-ку 155/2; внутр и внешн) | B4: 3.3 | C4: 10 | G4: 30
A5: г. Находка, ТЦ "Купеческий" (г. Находка ул. Сидоренко, 1) | B5: 10 | C5: 8 | G5: 30
A6: г. Находка Ц ГУМ (Находкинский проспект, 60) | B6: 8 | C6: 10 | G6: 30
A7: г. Находка "КАНТ и Ко" (ул. Находкинский проспект, 5) | B7: 2.8 | C7: 10 | G7: 30
A8: ТЦ "Европейский" (ул. Русская 19 В; внутр. и внеш.) | B8: 9 | C8: 10 | G8: 30
A9: г. Владивосток ТЦ "Максим" (Пр-т 100 лет Владивостоку, 57; внутр. и внеш.) | B9: 6.5 | C9: 10 | G9: 30
A10: г. Владивосток, ТЦ "Универсам" (ул. Русская, 44; внутр. и внеш.) | B10: 7.1 | C10: 9 | G10: 30
A11: г. Владивосток, ТЦ "Виктория" (ул. Бородинская, 46/50; внутр.) | B11: 10 | C11: 8 | G11: 30
A12: г. Владивосток, ТК "Дальприбор" (ул. Бородинская, 46/50; вещание на УЛИЦЕ) | B12: 12 | C12: 8 | G12: 30
A13: г. Владивосток, ТЦ "Россиянка"( ул. Русская, 87 А; внутр.) | B13: 8 | C13: 10 | G13: 30
A14: г. Владивосток, ТД ГУМ (ул.Светланская, 35; внешн.) | B14: 3.5 | C14: 10 | G14: 30
A15: г. Владивосток, ТЦ "Пасифик" (ул. Бородинская 46/50; внутр.) | C15: 8 | G15: 30
A16: г. Владивосток, ТЦ "Альянс" (ул. Бородинская 46/50; внутр.) | B16: 5 | C16: 8 | G16: 30
A17: г. Владивосток, ТЦ "Искра"- переход (п-т 100 Владивостоку, внутр) | B17: 3.3 | C17: 10 | G17: 30
A18: г. Владивосток, ТЦ Черемушки (ул. Запорожская; внутр. и внеш) | B18: 8 | C18: 10 | G18: 30
A19: г. Владивосток ТЦ "Надежда" (ул. Фадеева, 1а) | B19: 6 | C19: 10 | G19: 30
A20: г. Владивосток Супермаркет "Маркет +" (ул. Верхнепортовая, 2г; внутр. и внеш.) | B20: 6 | C20: 10 | G20: 30
A21: Супермаркет " Fresh 25" (Пр-т Красного Знамени, 86; внутр.) | B21: 3 | C21: 10 | G21: 30
A22: г. Уссурийск, Центральный рынок (ул. Чичерина) | B22: 3 | C22: 10 | G22: 30
A23: г. Уссурийск, ТЦ Богатырь (ул. Чичерина,91-а) | B23: 3 | C23: 10 | G23: 30
A24: г. Находка ТЦ "Апельсин" (ул. Школьная, 1б) | B24: 7 | C24: 10 | G24: 30
A25: г. Находка ТЦ Тихоокеанский ( Находкинский проспект, 36) | B25: 7 | C25: 10 | G25: 30
A26: Супермаркет " Fresh 25" (ул. Карбышева, 32; внутр. и внеш.) | B26: 3 | C26: 10 | G26: 30
A27: ИЗГОТОВЛЕНИЕ РОЛИКА | B27: 3 | C27: 10 | G27: 30
A28: КРЕАТИВ | B28: 3.3 | C28: 10 | G28: 30
A29: г. Хабаровск. ТЦ "ЭВР" | C29: 10 | G29: 30
A30: Артем. ТЦ "Авиатор" (ул. Фрунзе, 32а) | B30: 10 | C30: 6 | G30: 30
A31: г. Владивосток, Рынок "Первая Речка" (ул. Острякова, 13) | B31: 5.6 | C31: 10 | G31: 30
A32: г. Хабаровск. ТЦ "Смайл-Март" (ул. П. Морозова, 118) | C32: 10 | G32: 30
A33: г. Находка. Супермаркет "ВЛ-МАРТ" (Бульвар Энтузиастов, 2) | C33: 10 | G33: 30
A34: г. Уссурийск. ТЦ Белая гора (ул. Плеханова, 61,внутр. и внеш.) | C34: 10 | G34: 30
A35: г. Хабаровск. ТЦ "Али Восток" (пр.60 лет Октября, 156) | C35: 10 | G35: 30
A36: г. Хабаровс.Супермаркет "ВЛ-МАРТ" (ул. Ворошилова, 35б) | C36: 10 | G36: 30
A37: Артем.Супермаркет "Гурман" (пл. Ленина, 7/2) | C37: 10 | G37: 30
A38: Артем.Супермаркет "№ 90" (ул. Фрунзе, 48) | C38: 10 | G38: 30
A39: Артем.Супрмаркет "Алмаз" (ул. Кирова, 72) | C39: 10 | G39: 30
A40: Артем.Супермаркет "Парус" (ул. Кирова, 19) | C40: 10 | G40: 30
A41: Уссурийск. ТЦ Новый ГУМ (ул. Чичерина, 105) | B41: 8 | C41: 10 | G41: 30
A42: Артем.ТЦ "Городской" (ул. Кирова 9/1) | C42: 10 | G42: 30
A43: г. Хабаровск. ТД "Домострой" (ул. Пр-т 60 лет Октября, 158/1) | C43: 10 | G43: 30
A44: Дискаунтер "Унимарт" (Снеговая, 4; внутр. и внеш.) | C44: 10 | G44: 30
A45: г. Хабаровск. ТЦ "Южный парк" | C45: 10 | G45: 30
A46: г. Владивосток, Сеть Гипермаркетов АПТЕК "Монастырев и Ко" (ул Русская 94-а, внутр) | B46: 0 | C46: 10 | G46: 30
A47: г. Владивосток, Сеть Гипермаркетов АПТЕК "Монастырев и Ко" (пр 100 лет Вл-ку 20, внутр) | C47: 10 | G47: 30
A48: Гипермаркет "Влазер" (Океанский проспект, 52 а; внутр. и внешн.) | C48: 10 | G48: 30
A49: г. Владивосток, Сеть Гипермаркетов АПТЕК "Монастырев и Ко" (ул.Вязова 1-в, внутр) | C49: 10 | G49: 30
A50: г. Владивосток, Сеть Гипермаркетов АПТЕК "Монастырев и Ко" (ул.Шилкинская 10-а, внутр) | B50: 1 | C50: 10 | G50: 30
A51: г. Владивосток ТЦ "Sweet Home" (Бородинская 46/50) ВИДЕОМОНИТОР | C51: 18 | G51: 30
A52: Артем.Супермаркет "Юлия" (ул. Кирова, 1/1) | C52: 10 | G52: 30
A53: г. Владивосток, ТЦ Центральный (ул. Светланская, 29; внутр и внеш) | B53: 0 | C53: 10 | G53: 30
A54: Артем.Супермаркет "Юлия" (ул. Кирова, 1/1) | C54: 10 | G54: 30

Sheet календарь
A1: 8
A2: 2
C3: 2016 | AB3: =NOW()-1 -> 2015-12-06T16:06:19.270 | AC3: =ROUND(AB3,0) -> 42345 | AD3: 41967
C5: =DATE(theyear,1,1) -> 2016-01-01 | K5: =DATE(theyear,2,1) -> 2016-02-01 | S5: =DATE(theyear,3,1) -> 2016-03-01
C6: =TRANSPOSE({1;2;3;4;5;6;7}) -> 1900-01-01 | D6: 1900-01-02 | E6: 1900-01-03 | F6: 1900-01-04 | G6: 1900-01-05 | H6: 1900-01-06 | I6: 1900-01-07 | K6: =TRANSPOSE({1;2;3;4;5;6;7}) -> 1900-01-01 | L6: 1900-01-02 | M6: 1900-01-03 | N6: 1900-01-04 | O6: 1900-01-05 | P6: 1900-01-06 | Q6: 1900-01-07 | S6: =TRANSPOSE({1;2;3;4;5;6;7}) -> 1900-01-01 | T6: 1900-01-02 | U6: 1900-01-03 | V6: 1900-01-04 | W6: 1900-01-05 | X6: 1900-01-06 | Y6: 1900-01-07
C7: =IF(MONTH(DATE(YEAR(C5),MONTH(C5),1))<>MONTH(DATE(YEAR(C5),MONTH(C5),1)-(WEEKDAY(DATE(YEAR(C5),MONTH(C5),1))-1)+{0;1;2;3;4;5}*7+{1,2,3,4,5,6,7}-1),"",DATE(YEAR(C5),MONTH(C5),1)-(WEEKDAY(DATE(YEAR(C5),MONTH(C5),1))-1)+{0;1;2;3;4;5}*7+{1,2,3,4,5,6,7}-1) ->  | H7: 2016-01-01 | I7: 2016-01-02 | K7: =IF(MONTH(DATE(YEAR(K5),MONTH(K5),1))<>MONTH(DATE(YEAR(K5),MONTH(K5),1)-(WEEKDAY(DATE(YEAR(K5),MONTH(K5),1))-1)+{0;1;2;3;4;5}*7+{1,2,3,4,5,6,7}-1),"",DATE(YEAR(K5),MONTH(K5),1)-(WEEKDAY(DATE(YEAR(K5),MONTH(K5),1))-1)+{0;1;2;3;4;5}*7+{1,2,3,4,5,6,7}-1) ->  | L7: 2016-02-01 | M7: 2016-02-02 | N7: 2016-02-03 | O7: 2016-02-04 | P7: 2016-02-05 | Q7: 2016-02-06 | S7: =IF(MONTH(DATE(YEAR(S5),MONTH(S5),1))<>MONTH(DATE(YEAR(S5),MONTH(S5),1)-(WEEKDAY(DATE(YEAR(S5),MONTH(S5),1))-1)+{0;1;2;3;4;5}*7+{1,2,3,4,5,6,7}-1),"",DATE(YEAR(S5),MONTH(S5),1)-(WEEKDAY(DATE(YEAR(S5),MONTH(S5),1))-1)+{0;1;2;3;4;5}*7+{1,2,3,4,5,6,7}-1) ->  | U7: 2016-03-01 | V7: 2016-03-02 | W7: 2016-03-03 | X7: 2016-03-04 | Y7: 2016-03-05
C8: 2016-01-03 | D8: 2016-01-04 | E8: 2016-01-05 | F8: 2016-01-06 | G8: 2016-01-07 | H8: 2016-01-08 | I8: 2016-01-09 | K8: 2016-02-07 | L8: 2016-02-08 | M8: 2016-02-09 | N8: 2016-02-10 | O8: 2016-02-11 | P8: 2016-02-12 | Q8: 2016-02-13 | S8: 2016-03-06 | T8: 2016-03-07 | U8: 2016-03-08 | V8: 2016-03-09 | W8: 2016-03-10 | X8: 2016-03-11 | Y8: 2016-03-12
C9: 2016-01-10 | D9: 2016-01-11 | E9: 2016-01-12 | F9: 2016-01-13 | G9: 2016-01-14 | H9: 2016-01-15 | I9: 2016-01-16 | K9: 2016-02-14 | L9: 2016-02-15 | M9: 2016-02-16 | N9: 2016-02-17 | O9: 2016-02-18 | P9: 2016-02-19 | Q9: 2016-02-20 | S9: 2016-03-13 | T9: 2016-03-14 | U9: 2016-03-15 | V9: 2016-03-16 | W9: 2016-03-17 | X9: 2016-03-18 | Y9: 2016-03-19
C10: 2016-01-17 | D10: 2016-01-18 | E10: 2016-01-19 | F10: 2016-01-20 | G10: 2016-01-21 | H10: 2016-01-22 | I10: 2016-01-23 | K10: 2016-02-21 | L10: 2016-02-22 | M10: 2016-02-23 | N10: 2016-02-24 | O10: 2016-02-25 | P10: 2016-02-26 | Q10: 2016-02-27 | S10: 2016-03-20 | T10: 2016-03-21 | U10: 2016-03-22 | V10: 2016-03-23 | W10: 2016-03-24 | X10: 2016-03-25 | Y10: 2016-03-26
C11: 2016-01-24 | D11: 2016-01-25 | E11: 2016-01-26 | F11: 2016-01-27 | G11: 2016-01-28 | H11: 2016-01-29 | I11: 2016-01-30 | K11: 2016-02-28 | L11: 2016-02-29 | S11: 2016-03-27 | T11: 2016-03-28 | U11: 2016-03-29 | V11: 2016-03-30 | W11: 2016-03-31
C12: 2016-01-31
C14: =DATE(theyear,4,1) -> 2016-04-01 | K14: =DATE(theyear,5,1) -> 2016-05-01 | S14: =DATE(theyear,6,1) -> 2016-06-01
C15: =TRANSPOSE({1;2;3;4;5;6;7}) -> 1900-01-01 | D15: 1900-01-02 | E15: 1900-01-03 | F15: 1900-01-04 | G15: 1900-01-05 | H15: 1900-01-06 | I15: 1900-01-07 | K15: =TRANSPOSE({1;2;3;4;5;6;7}) -> 1900-01-01 | L15: 1900-01-02 | M15: 1900-01-03 | N15: 1900-01-04 | O15: 1900-01-05 | P15: 1900-01-06 | Q15: 1900-01-07 | S15: =TRANSPOSE({1;2;3;4;5;6;7}) -> 1900-01-01 | T15: 1900-01-02 | U15: 1900-01-03 | V15: 1900-01-04 | W15: 1900-01-05 | X15: 1900-01-06 | Y15: 1900-01-07
C16: =IF(MONTH(DATE(YEAR(C14),MONTH(C14),1))<>MONTH(DATE(YEAR(C14),MONTH(C14),1)-(WEEKDAY(DATE(YEAR(C14),MONTH(C14),1))-1)+{0;1;2;3;4;5}*7+{1,2,3,4,5,6,7}-1),"",DATE(YEAR(C14),MONTH(C14),1)-(WEEKDAY(DATE(YEAR(C14),MONTH(C14),1))-1)+{0;1;2;3;4;5}*7+{1,2,3,4,5,6,7}-1) ->  | H16: 2016-04-01 | I16: 2016-04-02 | K16: =IF(MONTH(DATE(YEAR(K14),MONTH(K14),1))<>MONTH(DATE(YEAR(K14),MONTH(K14),1)-(WEEKDAY(DATE(YEAR(K14),MONTH(K14),1))-1)+{0;1;2;3;4;5}*7+{1,2,3,4,5,6,7}-1),"",DATE(YEAR(K14),MONTH(K14),1)-(WEEKDAY(DATE(YEAR(K14),MONTH(K14),1))-1)+{0;1;2;3;4;5}*7+{1,2,3,4,5,6,7}-1) -> 2016-05-01 | L16: 2016-05-02 | M16: 2016-05-03 | N16: 2016-05-04 | O16: 2016-05-05 | P16: 2016-05-06 | Q16: 2016-05-07 | S16: =IF(MONTH(DATE(YEAR(S14),MONTH(S14),1))<>MONTH(DATE(YEAR(S14),MONTH(S14),1)-(WEEKDAY(DATE(YEAR(S14),MONTH(S14),1))-1)+{0;1;2;3;4;5}*7+{1,2,3,4,5,6,7}-1),"",DATE(YEAR(S14),MONTH(S14),1)-(WEEKDAY(DATE(YEAR(S14),MONTH(S14),1))-1)+{0;1;2;3;4;5}*7+{1,2,3,4,5,6,7}-1) ->  | V16: 2016-06-01 | W16: 2016-06-02 | X16: 2016-06-03 | Y16: 2016-06-04
C17: 2016-04-03 | D17: 2016-04-04 | E17: 2016-04-05 | F17: 2016-04-06 | G17: 2016-04-07 | H17: 2016-04-08 | I17: 2016-04-09 | K17: 2016-05-08 | L17: 2016-05-09 | M17: 2016-05-10 | N17: 2016-05-11 | O17: 2016-05-12 | P17: 2016-05-13 | Q17: 2016-05-14 | S17: 2016-06-05 | T17: 2016-06-06 | U17: 2016-06-07 | V17: 2016-06-08 | W17: 2016-06-09 | X17: 2016-06-10 | Y17: 2016-06-11
C18: 2016-04-10 | D18: 2016-04-11 | E18: 2016-04-12 | F18: 2016-04-13 | G18: 2016-04-14 | H18: 2016-04-15 | I18: 2016-04-16 | K18: 2016-05-15 | L18: 2016-05-16 | M18: 2016-05-17 | N18: 2016-05-18 | O18: 2016-05-19 | P18: 2016-05-20 | Q18: 2016-05-21 | S18: 2016-06-12 | T18: 2016-06-13 | U18: 2016-06-14 | V18: 2016-06-15 | W18: 2016-06-16 | X18: 2016-06-17 | Y18: 2016-06-18
C19: 2016-04-17 | D19: 2016-04-18 | E19: 2016-04-19 | F19: 2016-04-20 | G19: 2016-04-21 | H19: 2016-04-22 | I19: 2016-04-23 | K19: 2016-05-22 | L19: 2016-05-23 | M19: 2016-05-24 | N19: 2016-05-25 | O19: 2016-05-26 | P19: 2016-05-27 | Q19: 2016-05-28 | S19: 2016-06-19 | T19: 2016-06-20 | U19: 2016-06-21 | V19: 2016-06-22 | W19: 2016-06-23 | X19: 2016-06-24 | Y19: 2016-06-25
C20: 2016-04-24 | D20: 2016-04-25 | E20: 2016-04-26 | F20: 2016-04-27 | G20: 2016-04-28 | H20: 2016-04-29 | I20: 2016-04-30 | K20: 2016-05-29 | L20: 2016-05-30 | M20: 2016-05-31 | S20: 2016-06-26 | T20: 2016-06-27 | U20: 2016-06-28 | V20: 2016-06-29 | W20: 2016-06-30
C23: =DATE(theyear,7,1) -> 2016-07-01 | K23: =DATE(theyear,8,1) -> 2016-08-01 | S23: =DATE(theyear,9,1) -> 2016-09-01
C24: =TRANSPOSE({1;2;3;4;5;6;7}) -> 1900-01-01 | D24: 1900-01-02 | E24: 1900-01-03 | F24: 1900-01-04 | G24: 1900-01-05 | H24: 1900-01-06 | I24: 1900-01-07 | K24: =TRANSPOSE({1;2;3;4;5;6;7}) -> 1900-01-01 | L24: 1900-01-02 | M24: 1900-01-03 | N24: 1900-01-04 | O24: 1900-01-05 | P24: 1900-01-06 | Q24: 1900-01-07 | S24: =TRANSPOSE({1;2;3;4;5;6;7}) -> 1900-01-01 | T24: 1900-01-02 | U24: 1900-01-03 | V24: 1900-01-04 | W24: 1900-01-05 | X24: 1900-01-06 | Y24: 1900-01-07
C25: =IF(MONTH(DATE(YEAR(C23),MONTH(C23),1))<>MONTH(DATE(YEAR(C23),MONTH(C23),1)-(WEEKDAY(DATE(YEAR(C23),MONTH(C23),1))-1)+{0;1;2;3;4;5}*7+{1,2,3,4,5,6,7}-1),"",DATE(YEAR(C23),MONTH(C23),1)-(WEEKDAY(DATE(YEAR(C23),MONTH(C23),1))-1)+{0;1;2;3;4;5}*7+{1,2,3,4,5,6,7}-1) ->  | H25: 2016-07-01 | I25: 2016-07-02 | K25: =IF(MONTH(DATE(YEAR(K23),MONTH(K23),1))<>MONTH(DATE(YEAR(K23),MONTH(K23),1)-(WEEKDAY(DATE(YEAR(K23),MONTH(K23),1))-1)+{0;1;2;3;4;5}*7+{1,2,3,4,5,6,7}-1),"",DATE(YEAR(K23),MONTH(K23),1)-(WEEKDAY(DATE(YEAR(K23),MONTH(K23),1))-1)+{0;1;2;3;4;5}*7+{1,2,3,4,5,6,7}-1) ->  | L25: 2016-08-01 | M25: 2016-08-02 | N25: 2016-08-03 | O25: 2016-08-04 | P25: 2016-08-05 | Q25: 2016-08-06 | S25: =IF(MONTH(DATE(YEAR(S23),MONTH(S23),1))<>MONTH(DATE(YEAR(S23),MONTH(S23),1)-(WEEKDAY(DATE(YEAR(S23),MONTH(S23),1))-1)+{0;1;2;3;4;5}*7+{1,2,3,4,5,6,7}-1),"",DATE(YEAR(S23),MONTH(S23),1)-(WEEKDAY(DATE(YEAR(S23),MONTH(S23),1))-1)+{0;1;2;3;4;5}*7+{1,2,3,4,5,6,7}-1) ->  | W25: 2016-09-01 | X25: 2016-09-02 | Y25: 2016-09-03
C26: 2016-07-03 | D26: 2016-07-04 | E26: 2016-07-05 | F26: 2016-07-06 | G26: 2016-07-07 | H26: 2016-07-08 | I26: 2016-07-09 | K26: 2016-08-07 | L26: 2016-08-08 | M26: 2016-08-09 | N26: 2016-08-10 | O26: 2016-08-11 | P26: 2016-08-12 | Q26: 2016-08-13 | S26: 2016-09-04 | T26: 2016-09-05 | U26: 2016-09-06 | V26: 2016-09-07 | W26: 2016-09-08 | X26: 2016-09-09 | Y26: 2016-09-10
C27: 2016-07-10 | D27: 2016-07-11 | E27: 2016-07-12 | F27: 2016-07-13 | G27: 2016-07-14 | H27: 2016-07-15 | I27: 2016-07-16 | K27: 2016-08-14 | L27: 2016-08-15 | M27: 2016-08-16 | N27: 2016-08-17 | O27: 2016-08-18 | P27: 2016-08-19 | Q27: 2016-08-20 | S27: 2016-09-11 | T27: 2016-09-12 | U27: 2016-09-13 | V27: 2016-09-14 | W27: 2016-09-15 | X27: 2016-09-16 | Y27: 2016-09-17
C28: 2016-07-17 | D28: 2016-07-18 | E28: 2016-07-19 | F28: 2016-07-20 | G28: 2016-07-21 | H28: 2016-07-22 | I28: 2016-07-23 | K28: 2016-08-21 | L28: 2016-08-22 | M28: 2016-08-23 | N28: 2016-08-24 | O28: 2016-08-25 | P28: 2016-08-26 | Q28: 2016-08-27 | S28: 2016-09-18 | T28: 2016-09-19 | U28: 2016-09-20 | V28: 2016-09-21 | W28: 2016-09-22 | X28: 2016-09-23 | Y28: 2016-09-24
C29: 2016-07-24 | D29: 2016-07-25 | E29: 2016-07-26 | F29: 2016-07-27 | G29: 2016-07-28 | H29: 2016-07-29 | I29: 2016-07-30 | K29: 2016-08-28 | L29: 2016-08-29 | M29: 2016-08-30 | N29: 2016-08-31 | S29: 2016-09-25 | T29: 2016-09-26 | U29: 2016-09-27 | V29: 2016-09-28 | W29: 2016-09-29 | X29: 2016-09-30
C30: 2016-07-31
C32: =DATE(theyear,10,1) -> 2016-10-01 | K32: =DATE(theyear,11,1) -> 2016-11-01 | S32: =DATE(theyear,12,1) -> 2016-12-01
C33: =TRANSPOSE({1;2;3;4;5;6;7}) -> 1900-01-01 | D33: 1900-01-02 | E33: 1900-01-03 | F33: 1900-01-04 | G33: 1900-01-05 | H33: 1900-01-06 | I33: 1900-01-07 | K33: =TRANSPOSE({1;2;3;4;5;6;7}) -> 1900-01-01 | L33: 1900-01-02 | M33: 1900-01-03 | N33: 1900-01-04 | O33: 1900-01-05 | P33: 1900-01-06 | Q33: 1900-01-07 | S33: =TRANSPOSE({1;2;3;4;5;6;7}) -> 1900-01-01 | T33: 1900-01-02 | U33: 1900-01-03 | V33: 1900-01-04 | W33: 1900-01-05 | X33: 1900-01-06 | Y33: 1900-01-07
C34: =IF(MONTH(DATE(YEAR(C32),MONTH(C32),1))<>MONTH(DATE(YEAR(C32),MONTH(C32),1)-(WEEKDAY(DATE(YEAR(C32),MONTH(C32),1))-1)+{0;1;2;3;4;5}*7+{1,2,3,4,5,6,7}-1),"",DATE(YEAR(C32),MONTH(C32),1)-(WEEKDAY(DATE(YEAR(C32),MONTH(C32),1))-1)+{0;1;2;3;4;5}*7+{1,2,3,4,5,6,7}-1) ->  | I34: 2016-10-01 | K34: =IF(MONTH(DATE(YEAR(K32),MONTH(K32),1))<>MONTH(DATE(YEAR(K32),MONTH(K32),1)-(WEEKDAY(DATE(YEAR(K32),MONTH(K32),1))-1)+{0;1;2;3;4;5}*7+{1,2,3,4,5,6,7}-1),"",DATE(YEAR(K32),MONTH(K32),1)-(WEEKDAY(DATE(YEAR(K32),MONTH(K32),1))-1)+{0;1;2;3;4;5}*7+{1,2,3,4,5,6,7}-1) ->  | M34: 2016-11-01 | N34: 2016-11-02 | O34: 2016-11-03 | P34: 2016-11-04 | Q34: 2016-11-05 | S34: =IF(MONTH(DATE(YEAR(S32),MONTH(S32),1))<>MONTH(DATE(YEAR(S32),MONTH(S32),1)-(WEEKDAY(DATE(YEAR(S32),MONTH(S32),1))-1)+{0;1;2;3;4;5}*7+{1,2,3,4,5,6,7}-1),"",DATE(YEAR(S32),MONTH(S32),1)-(WEEKDAY(DATE(YEAR(S32),MONTH(S32),1))-1)+{0;1;2;3;4;5}*7+{1,2,3,4,5,6,7}-1) ->  | W34: 2016-12-01 | X34: 2016-12-02 | Y34: 2016-12-03
C35: 2016-10-02 | D35: 2016-10-03 | E35: 2016-10-04 | F35: 2016-10-05 | G35: 2016-10-06 | H35: 2016-10-07 | I35: 2016-10-08 | K35: 2016-11-06 | L35: 2016-11-07 | M35: 2016-11-08 | N35: 2016-11-09 | O35: 2016-11-10 | P35: 2016-11-11 | Q35: 2016-11-12 | S35: 2016-12-04 | T35: 2016-12-05 | U35: 2016-12-06 | V35: 2016-12-07 | W35: 2016-12-08 | X35: 2016-12-09 | Y35: 2016-12-10
C36: 2016-10-09 | D36: 2016-10-10 | E36: 2016-10-11 | F36: 2016-10-12 | G36: 2016-10-13 | H36: 2016-10-14 | I36: 2016-10-15 | K36: 2016-11-13 | L36: 2016-11-14 | M36: 2016-11-15 | N36: 2016-11-16 | O36: 2016-11-17 | P36: 2016-11-18 | Q36: 2016-11-19 | S36: 2016-12-11 | T36: 2016-12-12 | U36: 2016-12-13 | V36: 2016-12-14 | W36: 2016-12-15 | X36: 2016-12-16 | Y36: 2016-12-17
C37: 2016-10-16 | D37: 2016-10-17 | E37: 2016-10-18 | F37: 2016-10-19 | G37: 2016-10-20 | H37: 2016-10-21 | I37: 2016-10-22 | K37: 2016-11-20 | L37: 2016-11-21 | M37: 2016-11-22 | N37: 2016-11-23 | O37: 2016-11-24 | P37: 2016-11-25 | Q37: 2016-11-26 | S37: 2016-12-18 | T37: 2016-12-19 | U37: 2016-12-20 | V37: 2016-12-21 | W37: 2016-12-22 | X37: 2016-12-23 | Y37: 2016-12-24
C38: 2016-10-23 | D38: 2016-10-24 | E38: 2016-10-25 | F38: 2016-10-26 | G38: 2016-10-27 | H38: 2016-10-28 | I38: 2016-10-29 | K38: 2016-11-27 | L38: 2016-11-28 | M38: 2016-11-29 | N38: 2016-11-30 | S38: 2016-12-25 | T38: 2016-12-26 | U38: 2016-12-27 | V38: 2016-12-28 | W38: 2016-12-29 | X38: 2016-12-30 | Y38: 2016-12-31
C39: 2016-10-30 | D39: 2016-10-31

Sheet Лист1 (2) (hidden)
A1: Эта рабочая книга содержит ряд полезных функций рабочего листа:
A2: IsBold | B2: =isbold(A2) -> TRUE
A3: IsItalic | B3: =isitalic(A3) -> TRUE
A4: AllBold | B4: =Allbold(A4) -> FALSE
A5: FillColor | B5: =fillcolor(A5) -> 20
A6: SayIt | B6: =IF(C6=700,sayit("не давай большую скидку")) -> FALSE | C6: =RANDBETWEEN(10,100) -> 89
A7: LastSaved | B7: =lastsaved() -> 
A8: LastPrinted | B8: =lastprinted() -> 
A9: SheetName | B9: =sheetname(A1) -> Лист1 (2)
A10: WorkbookName | B10: =workbookname(A1) -> МП-арпропр_апаро_16.06.2015.xlsm
A11: AppName | B11: =appname(A1) -> Microsoft Excel
A12: CountBetween | B12: =countbetween(A16:A26,2,5) -> 5 | C12: =countbetween(A16:A26,5,2) -> 5
A13: LastInColumn | B13: =lastincolumn(E1) -> 999
A14: LastInRow | B14: =lastinrow(A16) -> 999
A16: 0 | E16: 999
A17: 1
A18: 2
A19: 4
A20: 3
A21: 2
A22: 6
A23: 8
A24: 9
A25: 10
A26: 3
A27: IsLike | B27: =ISLIKE(A1,"*workbook*") -> FALSE
A28: ExtractElement | B28: =extractelement("123-456-789",2,"-") -> 456
A29: ExtractElement2 | B29: =extractelement2("123-456-789",2,"-") -> 456
A30: SpellDollars | B30: =spelldollars(B32) -> Пять и 20/100 долларов
A31: StatFunction | B31: =statfunction($A$32:$A$36,"sum") -> 26
A32: 5 | B32: =statfunction($A$32:$A$36,"average") -> 5.2
A33: 4 | B33: =statfunction($A$32:$A$36,"median") -> 4
A34: 11 | B34: =statfunction($A$32:$A$36,"max") -> 11
A35: 3 | B35: =statfunction($A$32:$A$36,"min") -> 3
A36: 3 | B36: =statfunction($A$32:$A$36,"stdev") -> 3.346640106
A37: SheetOffset | B37: =SHEETOFFSET(2,A1) -> 
A38: MaxAllSheets | B38: =MAXALLSHEETS((A1)) -> 8
A39: RandomIntegers | B39: =randomintegers() -> 2
B40: 3
B41: 1
B42: 4
A43: RangeRandomize | B43: =rangerandomize(A32:A36) -> 3
B44: 3
B45: 4
B46: 11
B47: 5
